[Event "European Rapid Championship 2021"]
[Site "Katowice"]
[Date "2021.12.18"]
[Round "2.13"]
[White "Malczyk, Radoslaw"]
[Black "Tazbir, Marcin"]
[Result "0-1"]
[ECO "D20"]
[WhiteElo "1926"]
[BlackElo "2514"]
[Annotator "ChessBase"]
[PlyCount "92"]
[EventDate "2021.12.18"]
[EventType "swiss"]
[EventCountry "POL"]
[SourceTitle "playchess.com"]
[Source "ChessBase"]
[SourceQuality "1"]
[TimeControl "900+10"]

1. d4 {[%emt 0:00:04]} d5 {[%emt 0:00:02]} 2. c4 {[%emt 0:00:08]} dxc4 {
[%emt 0:00:01]} 3. e3 {[%emt 0:00:01]} Nf6 {[%emt 0:00:02]} 4. Bxc4 {[%emt 0:
00:03]} a6 {[%emt 0:00:01]} 5. Nf3 {[%emt 0:00:10]} b5 {[%emt 0:00:02]} 6. Be2
{[%emt 0:00:04]} Bb7 {[%emt 0:00:01]} 7. O-O {[%emt 0:00:03]} Nbd7 {[%emt 0:00:
02]} 8. a4 {[%emt 0:00:06]} Qb8 {[%emt 0:00:12]} 9. axb5 {[%emt 0:00:33]} axb5
{[%emt 0:00:01]} 10. Rxa8 {[%emt 0:00:03]} Bxa8 {[%emt 0:00:01]} 11. Qb3 {
[%emt 0:00:15]} b4 {[%emt 0:00:04]} 12. Ne5 {[%emt 0:01:07]} e6 {[%emt 0:00:52]
} 13. Nxd7 {[%emt 0:00:30]} Nxd7 {[%emt 0:00:02]} 14. Qa4 {[%emt 0:00:28]} Bd6
{[%emt 0:00:22]} 15. Nd2 {[%emt 0:00:19]} Ke7 {[%emt 0:00:03]} 16. Nc4 {
[%emt 0:00:12]} Nb6 {[%emt 0:00:01]} 17. Qc2 {[%emt 0:03:11]} Nxc4 {[%emt 0:00:
02]} 18. Bxc4 {[%emt 0:00:01]} c5 {[%emt 0:02:29]} 19. dxc5 {[%emt 0:00:28]}
Bxh2+ {[%emt 0:00:11]} 20. Kh1 {[%emt 0:00:02]} Qe5 {[%emt 0:00:46]} 21. f4 {
[%emt 0:00:50]} Qh5 {[%emt 0:00:03]} 22. Qd1 {[%emt 0:01:11]} Qxd1 {[%emt 0:03:
14]} 23. Rxd1 {[%emt 0:00:02]} Bg3 {[%emt 0:00:01]} 24. Bd2 {[%emt 0:00:16]}
Rd8 {[%emt 0:00:15]} 25. Be2 {[%emt 0:00:02]} b3 {[%emt 0:00:42]} 26. Bc3 {
[%emt 0:00:24]} f6 {[%emt 0:00:17]} 27. Ra1 {[%emt 0:00:20]} e5 {[%emt 0:02:00]
} 28. Ra7+ {[%emt 0:01:34]} Ke6 {[%emt 0:00:04]} 29. Bc4+ {[%emt 0:00:11]} Kf5
{[%emt 0:01:05]} 30. Bxb3 {[%emt 0:00:07]} exf4 {[%emt 0:00:15]} 31. exf4 {
[%emt 0:00:04]} Bxf4 {[%emt 0:00:15]} 32. Rxg7 {[%emt 0:00:08]} Be4 {[%emt 0:
00:14]} 33. Kg1 {[%emt 0:03:25]} Be3+ {[%emt 0:00:02]} 34. Kh2 {[%emt 0:00:01]}
Bxc5 {[%emt 0:00:24]} 35. Rxh7 {[%emt 0:01:05]} Kg6 {[%emt 0:00:53]} 36. Rh3 {
[%emt 0:01:05]} Ra8 {[%emt 0:00:18]} 37. Be1 {[%emt 0:01:22]} Ra1 {[%emt 0:00:
06]} 38. Bg3 {[%emt 0:00:25]} Rg1 {[%emt 0:00:58]} 39. Rh4 {[%emt 0:00:16]} f5
{[%emt 0:00:00]} 40. Bf4 {[%emt 0:00:45]} Rxg2+ {[%emt 0:00:09]} 41. Kh3 {
[%emt 0:00:01]} Rf2 {[%emt 0:00:34]} 42. Bd1 {[%emt 0:00:07]} Rf1 {[%emt 0:00:
09]} 43. Bh5+ {[%emt 0:00:02]} Kf6 {[%emt 0:00:01]} 44. Bd2 {[%emt 0:00:35]}
Rh1+ {[%emt 0:00:29]} 45. Kg3 {[%emt 0:00:01]} Bd6+ {[%emt 0:00:00]} 46. Bf4 {
[%emt 0:00:05]} Bxf4+ {[%emt 0:00:08]} 0-1

[Event "European Rapid Championship 2021"]
[Site "Katowice"]
[Date "2021.12.18"]
[Round "2.13"]
[White "Paczka, Patryk"]
[Black "Lubczynski, Rafal"]
[Result "1/2-1/2"]
[ECO "B07"]
[WhiteElo "1851"]
[BlackElo "2289"]
[Annotator "ChessBase"]
[PlyCount "83"]
[EventDate "2021.12.18"]
[EventType "swiss"]
[EventCountry "POL"]
[SourceTitle "playchess.com"]
[Source "ChessBase"]
[SourceQuality "1"]
[TimeControl "900+10"]

1. e4 {[%emt 0:00:04]} d6 {[%emt 0:00:01]} 2. d4 {[%emt 0:00:03]} Nf6 {[%emt 0:
00:01]} 3. Nc3 {[%emt 0:00:03]} e5 {[%emt 0:00:01]} 4. dxe5 {[%emt 0:00:03]}
dxe5 {[%emt 0:00:01]} 5. Qxd8+ {[%emt 0:00:03]} Kxd8 {[%emt 0:00:01]} 6. Bc4 {
[%emt 0:00:03]} Be6 {[%emt 0:00:01]} 7. Bxe6 {[%emt 0:00:02]} fxe6 {[%emt 0:00:
01]} 8. f3 {[%emt 0:00:04]} Bd6 {[%emt 0:00:03]} 9. Be3 {[%emt 0:00:05]} Ke7 {
[%emt 0:00:01]} 10. O-O-O {[%emt 0:00:07]} Nc6 {[%emt 0:00:01]} 11. Nge2 {
[%emt 0:00:17]} Rhb8 {[%emt 0:00:02]} 12. Nb5 {[%emt 0:00:53]} a6 {[%emt 0:00:
05]} 13. Nxd6 {[%emt 0:00:03]} cxd6 {[%emt 0:00:02]} 14. Rd2 {[%emt 0:00:27]}
h6 {[%emt 0:01:21]} 15. Bb6 {[%emt 0:02:41]} Rc8 {[%emt 0:01:21]} 16. Nc3 {
[%emt 0:01:34]} Nd7 {[%emt 0:02:40]} 17. Na4 {[%emt 0:02:44]} Nd8 {[%emt 0:00:
17]} 18. Rhd1 {[%emt 0:01:45]} Nf7 {[%emt 0:00:15]} 19. Be3 {[%emt 0:00:53]}
Rc6 {[%emt 0:00:05]} 20. Kb1 {[%emt 0:00:04]} b5 {[%emt 0:00:26]} 21. Nc3 {
[%emt 0:00:01]} Rb8 {[%emt 0:00:01]} 22. Ne2 {[%emt 0:00:13]} a5 {[%emt 0:00:
11]} 23. g3 {[%emt 0:00:03]} b4 {[%emt 0:00:25]} 24. Rc1 {[%emt 0:00:13]} Nf6 {
[%emt 0:03:12]} 25. c4 {[%emt 0:00:13]} b3 {[%emt 0:00:11]} 26. Rc3 {[%emt 0:
01:43]} bxa2+ {[%emt 0:01:23]} 27. Kxa2 {[%emt 0:00:02]} a4 {[%emt 0:00:02]}
28. Rdc2 {[%emt 0:01:08]} g5 {[%emt 0:01:41]} 29. Ra3 {[%emt 0:00:17]} Rb4 {
[%emt 0:00:19]} 30. c5 {[%emt 0:01:35]} d5 {[%emt 0:00:01]} 31. Bd2 {[%emt 0:
00:06]} Rb7 {[%emt 0:01:23]} 32. Rxa4 {[%emt 0:00:07]} g4 {[%emt 0:00:01]} 33.
exd5 {[%emt 0:00:14]} exd5 {[%emt 0:00:07]} 34. fxg4 {[%emt 0:00:21]} d4 {
[%emt 0:00:02]} 35. Nxd4 {[%emt 0:00:36]} exd4 {[%emt 0:00:06]} 36. Rxd4 {
[%emt 0:00:01]} Ra6+ {[%emt 0:04:53]} 37. Kb1 {[%emt 0:00:05]} Ne5 {[%emt 0:00:
10]} 38. b4 {[%emt 0:01:30]} Nc6 {[%emt 0:00:19]} 39. Rdc4 {[%emt 0:00:18]} Ne5
{[%emt 0:00:02]} 40. Rd4 {[%emt 0:00:04]} Nc6 {[%emt 0:00:05]} 41. Rdc4 {
[%emt 0:00:01]} Ne5 {[%emt 0:00:05]} 42. Rd4 {[%emt 0:00:02]} 1/2-1/2

[Event "European Rapid Championship 2021"]
[Site "Katowice"]
[Date "2021.12.18"]
[Round "2.14"]
[White "Wisniewski, Adrian"]
[Black "Deren, Marcin"]
[Result "1-0"]
[ECO "B50"]
[WhiteElo "2351"]
[BlackElo "1852"]
[Annotator "ChessBase"]
[PlyCount "71"]
[EventDate "2021.12.18"]
[EventType "swiss"]
[EventCountry "POL"]
[SourceTitle "playchess.com"]
[Source "ChessBase"]
[SourceQuality "1"]
[TimeControl "900+10"]

1. e4 {[%emt 0:00:01]} c5 {[%emt 0:00:26]} 2. Nf3 {[%emt 0:00:05]} d6 {[%emt 0:
00:05]} 3. c3 {[%emt 0:00:02]} Nf6 {[%emt 0:00:07]} 4. Bc4 {[%emt 0:00:06]} e6
{[%emt 0:00:06]} 5. d3 {[%emt 0:00:07]} Be7 {[%emt 0:00:25]} 6. Nbd2 {[%emt 0:
00:18]} O-O {[%emt 0:00:08]} 7. O-O {[%emt 0:00:54]} d5 {[%emt 0:00:42]} 8. Bb3
{[%emt 0:00:01]} dxe4 {[%emt 0:00:14]} 9. dxe4 {[%emt 0:00:03]} Qc7 {[%emt 0:
00:17]} 10. Re1 {[%emt 0:00:34]} Rd8 {[%emt 0:01:47]} 11. Qe2 {[%emt 0:01:14]}
b6 {[%emt 0:00:11]} 12. e5 {[%emt 0:01:13]} Nd5 {[%emt 0:02:42]} 13. Nf1 {
[%emt 0:01:10]} Nd7 {[%emt 0:02:12]} 14. Ng3 {[%emt 0:04:06]} Nf8 {[%emt 0:00:
27]} 15. h4 {[%emt 0:01:01]} h6 {[%emt 0:00:21]} 16. Bc2 {[%emt 0:00:48]} Bb7 {
[%emt 0:00:56]} 17. a3 {[%emt 0:01:19]} c4 {[%emt 0:02:38]} 18. h5 {[%emt 0:00:
05]} b5 {[%emt 0:00:10]} 19. Nd4 {[%emt 0:00:01]} a6 {[%emt 0:00:14]} 20. Qg4 {
[%emt 0:01:14]} Kh8 {[%emt 0:00:12]} 21. Bd2 {[%emt 0:00:01]} Bc5 {[%emt 0:00:
24]} 22. Rad1 {[%emt 0:00:36]} Ne7 {[%emt 0:01:01]} 23. Bc1 {[%emt 0:00:58]}
Nc6 {[%emt 0:00:04]} 24. Nf3 {[%emt 0:00:24]} Rxd1 {[%emt 0:00:18]} 25. Bxd1 {
[%emt 0:00:02]} Qb6 {[%emt 0:00:08]} 26. Be3 {[%emt 0:00:14]} Rd8 {[%emt 0:00:
09]} 27. Bc2 {[%emt 0:00:01]} Bxe3 {[%emt 0:00:12]} 28. Rxe3 {[%emt 0:00:02]}
Ne7 {[%emt 0:00:09]} 29. Nd4 {[%emt 0:00:09]} Nd5 {[%emt 0:00:15]} 30. Re1 {
[%emt 0:00:01]} Ne7 {[%emt 0:00:20]} 31. Ne4 {[%emt 0:00:31]} Bxe4 {[%emt 0:01:
13]} 32. Qxe4 {[%emt 0:00:01]} Nd5 {[%emt 0:00:36]} 33. Qf3 {[%emt 0:00:37]}
Qa7 {[%emt 0:00:16]} 34. Nc6 {[%emt 0:00:03]} Qd7 {[%emt 0:00:06]} 35. Nxd8 {
[%emt 0:00:02]} Qxd8 {[%emt 0:00:00]} 36. Qxf7 {[%emt 0:00:03]} 1-0

[Event "European Rapid Championship 2021"]
[Site "Katowice"]
[Date "2021.12.18"]
[Round "2.15"]
[White "Jagodzinski, Piotr"]
[Black "Starosta, Martyna"]
[Result "1-0"]
[ECO "A05"]
[WhiteElo "2145"]
[BlackElo "1851"]
[Annotator "ChessBase"]
[PlyCount "141"]
[EventDate "2021.12.18"]
[EventType "swiss"]
[EventCountry "POL"]
[SourceTitle "playchess.com"]
[Source "ChessBase"]
[SourceQuality "1"]
[TimeControl "900+10"]

1. Nf3 {[%emt 0:00:03]} Nf6 {[%emt 0:00:01]} 2. b3 {[%emt 0:00:02]} d5 {
[%emt 0:00:03]} 3. Bb2 {[%emt 0:00:01]} c5 {[%emt 0:00:02]} 4. e3 {[%emt 0:00:
02]} Nc6 {[%emt 0:00:01]} 5. d4 {[%emt 0:00:01]} cxd4 {[%emt 0:00:02]} 6. Nxd4
{[%emt 0:00:02]} Bg4 {[%emt 0:00:04]} 7. Be2 {[%emt 0:00:04]} Bxe2 {[%emt 0:00:
02]} 8. Qxe2 {[%emt 0:00:02]} e6 {[%emt 0:00:02]} 9. Nd2 {[%emt 0:00:29]} Rc8 {
[%emt 0:00:09]} 10. c3 {[%emt 0:04:26]} Bd6 {[%emt 0:00:08]} 11. O-O {[%emt 0:
00:02]} O-O {[%emt 0:00:04]} 12. c4 {[%emt 0:00:13]} Bb8 {[%emt 0:01:02]} 13.
cxd5 {[%emt 0:00:15]} Nxd5 {[%emt 0:01:30]} 14. Nc4 {[%emt 0:02:30]} Qh4 {
[%emt 0:00:47]} 15. h3 {[%emt 0:01:15]} Nce7 {[%emt 0:01:37]} 16. Rac1 {
[%emt 0:01:16]} Rfd8 {[%emt 0:00:11]} 17. Rfd1 {[%emt 0:01:00]} Ng6 {[%emt 0:
00:16]} 18. Nf3 {[%emt 0:00:05]} Qe7 {[%emt 0:00:40]} 19. Ba3 {[%emt 0:00:24]}
Qf6 {[%emt 0:00:33]} 20. Na5 {[%emt 0:01:52]} Rxc1 {[%emt 0:05:29]} 21. Rxc1 {
[%emt 0:00:15]} b6 {[%emt 0:00:29]} 22. Nc6 {[%emt 0:00:09]} Re8 {[%emt 0:00:
05]} 23. Bb2 {[%emt 0:00:52]} e5 {[%emt 0:00:01]} 24. Qb5 {[%emt 0:00:19]} Nc7
{[%emt 0:01:05]} 25. Qa4 {[%emt 0:00:19]} Ne6 {[%emt 0:01:01]} 26. Nxb8 {
[%emt 0:00:35]} Rxb8 {[%emt 0:00:01]} 27. Qxa7 {[%emt 0:00:01]} Qd8 {[%emt 0:
00:05]} 28. Nxe5 {[%emt 0:00:21]} Nxe5 {[%emt 0:00:06]} 29. Bxe5 {[%emt 0:00:
02]} Ra8 {[%emt 0:00:21]} 30. Qb7 {[%emt 0:00:06]} Nc5 {[%emt 0:00:07]} 31. Qf3
{[%emt 0:01:19]} Rxa2 {[%emt 0:00:17]} 32. Rd1 {[%emt 0:00:07]} Qe8 {[%emt 0:
00:51]} 33. Qc6 {[%emt 0:00:10]} Ra8 {[%emt 0:00:40]} 34. Qxb6 {[%emt 0:00:22]}
Nd7 {[%emt 0:00:02]} 35. Rxd7 {[%emt 0:00:39]} Qxd7 {[%emt 0:00:01]} 36. b4 {
[%emt 0:01:02]} f6 {[%emt 0:00:32]} 37. Bd4 {[%emt 0:00:01]} Ra4 {[%emt 0:00:
30]} 38. b5 {[%emt 0:00:07]} Rb4 {[%emt 0:00:05]} 39. Qb8+ {[%emt 0:00:01]} Kf7
{[%emt 0:00:01]} 40. b6 {[%emt 0:00:01]} Rb5 {[%emt 0:00:16]} 41. Qa8 {[%emt 0:
00:19]} Rb1+ {[%emt 0:00:10]} 42. Kh2 {[%emt 0:00:01]} Qd6+ {[%emt 0:00:01]}
43. f4 {[%emt 0:00:01]} Qb4 {[%emt 0:01:00]} 44. Qb7+ {[%emt 0:00:08]} Qe7 {
[%emt 0:00:03]} 45. Qa8 {[%emt 0:00:06]} Rb5 {[%emt 0:00:19]} 46. Qc6 {[%emt 0:
00:22]} Rb1 {[%emt 0:00:18]} 47. Qc2 {[%emt 0:00:10]} Qb4 {[%emt 0:00:11]} 48.
Qxh7 {[%emt 0:00:10]} Qe1 {[%emt 0:00:13]} 49. Qc2 {[%emt 0:00:24]} Qg1+ {
[%emt 0:00:09]} 50. Kg3 {[%emt 0:00:01]} Qe1+ {[%emt 0:00:01]} 51. Qf2 {
[%emt 0:00:01]} Ke6 {[%emt 0:00:34]} 52. Qxe1 {[%emt 0:00:44]} Rxe1 {[%emt 0:
00:02]} 53. Kf2 {[%emt 0:00:05]} Rb1 {[%emt 0:00:01]} 54. g4 {[%emt 0:00:03]}
Kd5 {[%emt 0:00:02]} 55. h4 {[%emt 0:00:06]} Ke4 {[%emt 0:00:11]} 56. h5 {
[%emt 0:00:08]} Rb3 {[%emt 0:00:08]} 57. Kg3 {[%emt 0:00:08]} Rb1 {[%emt 0:00:
05]} 58. Kg2 {[%emt 0:00:20]} Rb3 {[%emt 0:00:03]} 59. g5 {[%emt 0:00:08]} fxg5
{[%emt 0:00:18]} 60. fxg5 {[%emt 0:00:00]} Kf5 {[%emt 0:00:03]} 61. h6 {
[%emt 0:00:06]} gxh6 {[%emt 0:00:07]} 62. gxh6 {[%emt 0:00:01]} Kg6 {[%emt 0:
00:00]} 63. Kf3 {[%emt 0:00:01]} Kxh6 {[%emt 0:00:03]} 64. Ke4 {[%emt 0:00:01]}
Kg6 {[%emt 0:00:09]} 65. Kd5 {[%emt 0:00:00]} Rb1 {[%emt 0:00:07]} 66. Kc6 {
[%emt 0:00:01]} Rc1+ {[%emt 0:00:03]} 67. Bc5 {[%emt 0:00:01]} Rh1 {[%emt 0:00:
18]} 68. b7 {[%emt 0:00:01]} Rh8 {[%emt 0:00:03]} 69. Bd6 {[%emt 0:00:05]} Kf5
{[%emt 0:00:10]} 70. Kd5 {[%emt 0:00:07]} Re8 {[%emt 0:00:14]} 71. b8=Q {
[%emt 0:00:19]} 1-0

[Event "European Rapid Championship 2021"]
[Site "Katowice"]
[Date "2021.12.18"]
[Round "2.15"]
[White "Andrejczuk, Beata"]
[Black "Sumets, Andrey"]
[Result "0-1"]
[ECO "B23"]
[WhiteElo "1925"]
[BlackElo "2508"]
[Annotator "ChessBase"]
[PlyCount "36"]
[EventDate "2021.12.18"]
[EventType "swiss"]
[EventCountry "POL"]
[SourceTitle "playchess.com"]
[Source "ChessBase"]
[SourceQuality "1"]
[TimeControl "900+10"]

1. e4 {[%emt 0:00:01]} c5 {[%emt 0:00:03]} 2. Nc3 {[%emt 0:00:02]} e6 {[%emt 0:
00:02]} 3. f4 {[%emt 0:00:02]} d5 {[%emt 0:00:02]} 4. e5 {[%emt 0:00:02]} Nc6 {
[%emt 0:00:10]} 5. Nf3 {[%emt 0:00:03]} a6 {[%emt 0:00:09]} 6. a4 {[%emt 0:00:
03]} Nh6 {[%emt 0:00:14]} 7. g3 {[%emt 0:00:13]} Qb6 {[%emt 0:00:47]} 8. d3 {
[%emt 0:00:27]} Bd7 {[%emt 0:01:05]} 9. Bg2 {[%emt 0:00:06]} Nf5 {[%emt 0:00:
09]} 10. O-O {[%emt 0:01:53]} h5 {[%emt 0:00:17]} 11. Bd2 {[%emt 0:00:24]} c4+
{[%emt 0:00:57]} 12. Kh1 {[%emt 0:00:04]} cxd3 {[%emt 0:00:02]} 13. cxd3 {
[%emt 0:00:07]} h4 {[%emt 0:00:51]} 14. gxh4 {[%emt 0:01:09]} Be7 {[%emt 0:01:
42]} 15. a5 {[%emt 0:01:22]} Qa7 {[%emt 0:00:15]} 16. Be1 {[%emt 0:01:46]} Ne3
{[%emt 0:00:50]} 17. Bf2 {[%emt 0:01:30]} Nxd1 {[%emt 0:00:05]} 18. Bxa7 {
[%emt 0:00:03]} Nxc3 {[%emt 0:00:02]} 0-1

[Event "European Rapid Championship 2021"]
[Site "Katowice"]
[Date "2021.12.18"]
[Round "2.16"]
[White "Musial, Tomasz"]
[Black "Vetoshko, Volodymyr"]
[Result "1/2-1/2"]
[ECO "D30"]
[WhiteElo "1916"]
[BlackElo "2483"]
[Annotator "ChessBase"]
[PlyCount "66"]
[EventDate "2021.12.18"]
[EventType "swiss"]
[EventCountry "POL"]
[SourceTitle "playchess.com"]
[Source "ChessBase"]
[SourceQuality "1"]
[TimeControl "900+10"]

1. d4 {[%emt 0:00:01]} d5 {[%emt 0:00:01]} 2. c4 {[%emt 0:00:02]} e6 {[%emt 0:
00:00]} 3. Nf3 a6 4. Nbd2 {[%emt 0:00:13]} Nf6 {[%emt 0:00:14]} 5. g3 {[%emt 0:
00:10]} dxc4 {[%emt 0:01:24]} 6. Nxc4 {[%emt 0:00:09]} b5 {[%emt 0:02:01]} 7.
Nce5 {[%emt 0:00:09]} Bb7 {[%emt 0:01:35]} 8. Bg2 {[%emt 0:00:03]} Bd5 {
[%emt 0:00:39]} 9. O-O {[%emt 0:02:47]} Be7 {[%emt 0:00:36]} 10. Bf4 {[%emt 0:
02:26]} O-O {[%emt 0:00:24]} 11. Rc1 {[%emt 0:00:57]} Bd6 {[%emt 0:00:28]} 12.
Nd3 {[%emt 0:00:55]} Nbd7 {[%emt 0:01:12]} 13. Nfe5 {[%emt 0:00:15]} Bxg2 {
[%emt 0:01:01]} 14. Kxg2 {[%emt 0:00:04]} Bxe5 {[%emt 0:00:44]} 15. Nxe5 {
[%emt 0:00:48]} Nxe5 {[%emt 0:02:14]} 16. Bxe5 {[%emt 0:01:28]} Qd5+ {[%emt 0:
00:01]} 17. Kg1 {[%emt 0:00:56]} Nd7 {[%emt 0:01:34]} 18. Bxc7 {[%emt 0:00:20]}
Qxa2 {[%emt 0:00:04]} 19. Bd6 {[%emt 0:01:31]} Rfc8 {[%emt 0:00:05]} 20. Rxc8+
{[%emt 0:01:24]} Rxc8 {[%emt 0:00:01]} 21. Qa1 {[%emt 0:00:05]} Qxa1 {[%emt 0:
00:38]} 22. Rxa1 {[%emt 0:00:02]} Rc6 {[%emt 0:00:03]} 23. Bb4 {[%emt 0:00:21]}
f5 {[%emt 0:00:14]} 24. Kf1 {[%emt 0:00:43]} Kf7 {[%emt 0:00:05]} 25. Ke1 {
[%emt 0:00:20]} Nf6 {[%emt 0:00:29]} 26. Bc5 {[%emt 0:00:31]} e5 {[%emt 0:01:
19]} 27. dxe5 {[%emt 0:00:15]} Rxc5 {[%emt 0:00:01]} 28. exf6 {[%emt 0:00:02]}
gxf6 {[%emt 0:00:02]} 29. Rxa6 {[%emt 0:00:10]} Rc2 {[%emt 0:00:01]} 30. Ra7+ {
[%emt 0:01:28]} Kg6 {[%emt 0:00:01]} 31. Rb7 {[%emt 0:00:20]} Rxb2 {[%emt 0:00:
02]} 32. f3 {[%emt 0:00:03]} b4 {[%emt 0:00:24]} 33. Kf2 {[%emt 0:00:13]} b3 {
[%emt 0:01:24]} 1/2-1/2

[Event "European Rapid Championship 2021"]
[Site "Katowice"]
[Date "2021.12.18"]
[Round "2.16"]
[White "Gorkiewicz, Mateusz"]
[Black "Skawinski, Arkadiusz"]
[Result "1/2-1/2"]
[ECO "C02"]
[WhiteElo "1841"]
[BlackElo "2367"]
[Annotator "NA"]
[PlyCount "76"]
[EventDate "2021.12.18"]
[EventType "swiss"]
[EventCountry "POL"]
[SourceTitle "playchess.com"]
[Source "ChessBase"]
[SourceQuality "1"]
[TimeControl "900+10"]

1. e4 {[%emt 0:00:02]} e6 {[%emt 0:00:01]} 2. d4 {[%emt 0:00:02]} d5 {[%emt 0:
00:01]} 3. e5 {[%emt 0:00:09]} c5 {[%emt 0:00:06]} 4. c3 {[%emt 0:00:01]} Qb6 {
[%emt 0:00:01]} 5. Nf3 {[%emt 0:00:02]} Nc6 {[%emt 0:00:02]} 6. Bd3 {[%emt 0:
00:02]} cxd4 {[%emt 0:00:02]} 7. cxd4 {[%emt 0:00:02]} Bd7 {[%emt 0:00:01]} 8.
Bc2 Nb4 {[%emt 0:00:04]} 9. O-O {[%emt 0:00:05]} Rc8 {[%emt 0:00:04]} 10. Nc3 {
[%emt 0:00:03]} Nxc2 {[%emt 0:00:03]} 11. Qxc2 {[%emt 0:00:02]} Bb4 {[%emt 0:
00:03]} 12. Be3 {[%emt 0:01:16]} Ne7 {[%emt 0:00:08]} 13. Rac1 {[%emt 0:00:08]}
Bxc3 {[%emt 0:00:02]} 14. bxc3 {[%emt 0:00:04]} h6 {[%emt 0:00:12]} 15. Rfe1 {
[%emt 0:01:23]} O-O {[%emt 0:00:14]} 16. g4 {[%emt 0:01:57]} Qa6 {[%emt 0:00:
32]} 17. Nh4 {[%emt 0:01:13]} Bb5 {[%emt 0:00:38]} 18. f4 {[%emt 0:01:32]} Bd3
{[%emt 0:00:05]} 19. Qf2 {[%emt 0:00:20]} f5 {[%emt 0:01:33]} 20. g5 {[%emt 0:
00:22]} hxg5 {[%emt 0:01:21]} 21. fxg5 {[%emt 0:01:11]} Be4 {[%emt 0:00:01]}
22. Bf4 {[%emt 0:01:34]} Kf7 {[%emt 0:00:15]} 23. Ng2 {[%emt 0:01:44]} Bxg2 {
[%emt 0:00:02]} 24. Kxg2 {[%emt 0:00:02]} Ng6 {[%emt 0:00:23]} 25. Rc2 {
[%emt 0:00:09]} Rh8 {[%emt 0:00:10]} 26. Bg3 {[%emt 0:02:19]} Ke7 {[%emt 0:00:
01]} 27. Rb1 {[%emt 0:00:13]} f4 {[%emt 0:00:32]} 28. Rcb2 {[%emt 0:00:25]} b6
{[%emt 0:00:03]} 29. Qc2 {[%emt 0:00:02]} fxg3 {[%emt 0:01:37]} 30. Qxg6 {
[%emt 0:00:02]} Rxh2+ {[%emt 0:00:32]} 31. Kxg3 {[%emt 0:00:02]} Rxb2 {[%emt 0:
00:02]} 32. Qxg7+ {[%emt 0:00:07]} Kd8 {[%emt 0:00:01]} 33. Qf6+ {[%emt 0:01:
41]} Kc7 {[%emt 0:00:04]} 34. Rxb2 {[%emt 0:00:07]} Qd3+ {[%emt 0:01:02]} 35.
Qf3 {[%emt 0:00:02]} Qg6 {[%emt 0:00:02]} 36. Qf6 {[%emt 0:01:04]} Qd3+ {
[%emt 0:03:12]} 37. Qf3 {[%emt 0:00:12]} Qg6 {[%emt 0:00:02]} 38. Qf6 {[%emt 0:
00:02]} Qd3+ {[%emt 0:00:01]} 1/2-1/2

[Event "European Rapid Championship 2021"]
[Site "Katowice"]
[Date "2021.12.18"]
[Round "2.17"]
[White "Janik, Igor"]
[Black "Spyra, Piotr"]
[Result "1-0"]
[ECO "C00"]
[WhiteElo "2462"]
[BlackElo "1920"]
[Annotator "ChessBase"]
[PlyCount "81"]
[EventDate "2021.12.18"]
[EventType "swiss"]
[EventCountry "POL"]
[SourceTitle "playchess.com"]
[Source "ChessBase"]
[SourceQuality "1"]
[TimeControl "900+10"]

1. e4 {[%emt 0:00:01]} e6 {[%emt 0:00:08]} 2. Qe2 {[%emt 0:00:01]} d5 {[%emt 0:
00:05]} 3. exd5 {[%emt 0:00:02]} Qxd5 {[%emt 0:00:02]} 4. Nc3 {[%emt 0:00:01]}
Qd6 {[%emt 0:00:38]} 5. Nf3 {[%emt 0:00:16]} Nf6 {[%emt 0:00:07]} 6. g3 {
[%emt 0:00:01]} a6 {[%emt 0:00:26]} 7. d4 {[%emt 0:00:04]} Nc6 {[%emt 0:00:25]}
8. Bf4 {[%emt 0:00:30]} Qb4 {[%emt 0:00:26]} 9. O-O-O {[%emt 0:00:03]} Bd6 {
[%emt 0:00:45]} 10. Bxd6 {[%emt 0:00:17]} cxd6 {[%emt 0:00:55]} 11. d5 {
[%emt 0:00:02]} Ne7 {[%emt 0:00:38]} 12. dxe6 {[%emt 0:00:02]} fxe6 {[%emt 0:
00:26]} 13. Qe3 {[%emt 0:02:51]} Nf5 {[%emt 0:01:10]} 14. Qd2 {[%emt 0:00:42]}
O-O {[%emt 0:00:26]} 15. Bh3 {[%emt 0:00:09]} b5 {[%emt 0:01:57]} 16. Bxf5 {
[%emt 0:00:53]} exf5 {[%emt 0:00:02]} 17. Nd4 {[%emt 0:00:14]} Bb7 {[%emt 0:00:
36]} 18. Rhe1 {[%emt 0:00:17]} d5 {[%emt 0:04:13]} 19. a3 {[%emt 0:02:08]} Qd6
{[%emt 0:00:53]} 20. Nxf5 {[%emt 0:00:02]} Qd7 {[%emt 0:00:00]} 21. Qg5 {
[%emt 0:01:40]} Rae8 {[%emt 0:00:17]} 22. Rxe8 {[%emt 0:00:28]} Rxe8 {[%emt 0:
00:10]} 23. f3 {[%emt 0:00:10]} Bc8 {[%emt 0:01:54]} 24. Nd4 {[%emt 0:00:05]}
Bb7 {[%emt 0:00:20]} 25. Qd2 {[%emt 0:00:17]} Qh3 {[%emt 0:00:20]} 26. Nb3 {
[%emt 0:00:15]} d4 {[%emt 0:00:35]} 27. Nxd4 {[%emt 0:00:04]} Rd8 {[%emt 0:00:
03]} 28. Qe2 {[%emt 0:00:25]} Re8 {[%emt 0:00:40]} 29. Qf2 {[%emt 0:00:14]} Rf8
{[%emt 0:00:11]} 30. Qg1 {[%emt 0:00:30]} Nd5 {[%emt 0:00:23]} 31. Nxd5 {
[%emt 0:00:12]} Bxd5 {[%emt 0:00:02]} 32. Qe3 {[%emt 0:00:43]} Qxh2 {[%emt 0:
00:22]} 33. Qe5 {[%emt 0:00:00]} Qh6+ {[%emt 0:00:24]} 34. f4 {[%emt 0:00:01]}
Bc4 {[%emt 0:00:09]} 35. b3 {[%emt 0:00:14]} Bf7 {[%emt 0:00:03]} 36. Nf5 {
[%emt 0:00:03]} Qf6 {[%emt 0:00:11]} 37. Qxf6 {[%emt 0:00:02]} gxf6 {[%emt 0:
00:01]} 38. Rd6 {[%emt 0:00:03]} Bg6 {[%emt 0:00:15]} 39. Ne3 {[%emt 0:00:01]}
Re8 {[%emt 0:00:06]} 40. Kd2 {[%emt 0:00:01]} a5 {[%emt 0:00:12]} 41. f5 {
[%emt 0:00:03]} 1-0